fUST/lending_fUST_20260106
["ID","MTS","AMOUNT","RATE_DAILY","PERIOD"]
[400504682,1767678640336,-664.2,0.00013698,2]
[400504684,1767678640345,-664.2,0.00013698,2]
[400504686,1767678640355,-664.2,0.00013698,2]
[400504688,1767678640364,-664.2,0.00013698,2]
[400504690,1767678640373,-664.2,0.00013698,2]
[400504692,1767678640382,-664.2,0.00013698,2]
[400504694,1767678640392,-664.2,0.00013698,2]
[400504695,1767678640401,-664.2,0.00013698,2]
[400504697,1767678640411,-664.2,0.00013698,2]
[400504700,1767678640420,-664.2,0.00013698,2]
[400504701,1767678640430,-664.2,0.00013698,2]
[400504703,1767678640439,-664.2,0.00013698,2]
[400504705,1767678640448,-664.2,0.00013698,2]
[400504707,1767678640457,-664.2,0.00013698,2]
[400504709,1767678640466,-664.2,0.00013698,2]
[400504711,1767678640475,-664.2,0.00013698,2]
[400504713,1767678640485,-664.2,0.00013698,2]
[400504715,1767678640494,-664.2,0.00013698,2]
[400504717,1767678640504,-664.2,0.00013698,2]
[400504719,1767678640513,-664.2,0.00013698,2]
[400504721,1767678640523,-664.34864366,0.00013698,2]
[400504723,1767678640532,-513.29487857,0.00013698,2]
[400504726,1767678640543,-500.0,0.00013698,2]
[400504728,1767678640552,-2068.09,0.00013698,2]
[400504730,1767678640564,-2068.09,0.00013698,2]
[400504732,1767678640572,-2068.09,0.00013698,2]
[400504734,1767678640582,-2068.09,0.00013698,2]
[400504736,1767678640592,-2068.09,0.00013698,2]
[400504737,1767678640601,-2068.09,0.00013698,2]
[400504738,1767678640610,-2068.09,0.00013698,2]
[400504739,1767678640618,-2068.09,0.00013698,2]
[400504740,1767678640629,-2068.09,0.00013698,2]
[400504741,1767678640640,-2068.09,0.00013698,2]
[400504742,1767678640649,-2068.09,0.00013698,2]
[400504743,1767678640658,-2068.09,0.00013698,2]
[400504744,1767678640667,-2068.09,0.00013698,2]
[400504745,1767678640677,-2068.09,0.00013698,2]
[400504746,1767678640686,-2068.09,0.00013698,2]
[400504747,1767678640695,-2068.09,0.00013698,2]
[400504748,1767678640705,-2068.09,0.00013698,2]
[400504749,1767678640714,-2068.09,0.00013698,2]
[400504750,1767678640722,-2068.09,0.00013698,2]
[400504751,1767678640731,-2068.09,0.00013698,2]
[400504752,1767678640740,-2068.09,0.00013698,2]
[400504753,1767678640749,-2068.09,0.00013698,2]
[400504754,1767678640758,-2068.09,0.00013698,2]
[400504755,1767678640767,-2068.16620781,0.00013698,2]
[400504756,1767678640775,-500.0,0.00013698,2]
[400504757,1767678640784,-500.0,0.00013698,2]
[400504759,1767678640794,-500.0,0.00013698,2]
[400504760,1767678640803,-500.0,0.00013698,2]
[400504762,1767678640812,-500.0,0.00013698,2]
[400504764,1767678640821,-500.0,0.00013698,2]
[400504766,1767678640830,-256.08,0.00013698,2]
[400504768,1767678640838,-1329.56,0.00013698,2]
[400504770,1767678640847,-1329.56,0.00013698,2]
[400504772,1767678640856,-1329.56,0.00013698,2]
[400504774,1767678640865,-1329.56,0.00013698,2]
[400504776,1767678640874,-1329.56,0.00013698,2]
[400504778,1767678640883,-1329.56,0.00013698,2]
[400504780,1767678640892,-1329.56,0.00013698,2]
[400504782,1767678640901,-1329.56,0.00013698,2]
[400504784,1767678640910,-1329.56,0.00013698,2]
[400504786,1767678640919,-1329.56,0.00013698,2]
[400504788,1767678640928,-1329.56,0.00013698,2]
[400504791,1767678640938,-1329.56,0.00013698,2]
[400504793,1767678640947,-1329.56,0.00013698,2]
[400504795,1767678640956,-1329.56,0.00013698,2]
[400504796,1767678640965,-1329.56,0.00013698,2]
[400504798,1767678640974,-1329.56,0.00013698,2]
[400504800,1767678640982,-1329.56,0.00013698,2]
[400504802,1767678640991,-1329.56,0.00013698,2]
[400504805,1767678641001,-1329.56,0.00013698,2]
[400504806,1767678641010,-1329.56,0.00013698,2]
[400504808,1767678641019,-1329.56,0.00013698,2]
[400504811,1767678641029,-1329.56,0.00013698,2]
[400504812,1767678641038,-1329.56,0.00013698,2]
[400504815,1767678641048,-1329.65146301,0.00013698,2]
[400504816,1767678641057,-1092.576248,0.00013699,2]
[400504818,1767678641066,-500.0,0.00013699,2]
[400504821,1767678641075,-500.0,0.00013699,2]
[400504823,1767678641084,-500.0,0.00013699,2]
[400504825,1767678641093,-500.0,0.00013699,2]
[400504827,1767678641102,-500.0,0.00013699,2]
[400504829,1767678641111,-491.42200278,0.00013699,2]
[400504830,1767678641120,-500.0,0.00013699,2]
[400504832,1767678641129,-184.59334166,0.00013699,2]
[400504834,1767678641137,-500.0,0.00013699,2]
[400504837,1767678641147,-501.85764264,0.00013699,2]
[400504839,1767678641156,-418.16525297,0.00013699,2]
[400504841,1767678641165,-501.59205968,0.00013699,2]
[400504843,1767678641174,-500.0,0.00013699,2]
[400504845,1767678641183,-500.0,0.00013699,2]
[400504847,1767678641192,-500.0,0.00013699,2]
[400504849,1767678641201,-500.0,0.00013699,2]
[400504850,1767678641211,-500.0,0.00013699,2]
[400504852,1767678641220,-500.0,0.00013699,2]
[400504854,1767678641230,-500.0,0.00013699,2]
[400504856,1767678641239,-500.0,0.00013699,2]
[400504858,1767678641248,-500.0,0.00013699,2]
[400504860,1767678641257,-500.0,0.00013699,2]
[400504862,1767678641266,-500.0,0.00013699,2]
[400504864,1767678641275,-500.0,0.00013699,2]
[400504866,1767678641285,-500.0,0.00013699,2]
[400504868,1767678641294,-500.0,0.00013699,2]
[400504871,1767678641304,-500.0,0.00013699,2]
[400504872,1767678641313,-577.71993543,0.00013699,2]
[400504874,1767678641323,-500.0,0.00013699,2]
[400504876,1767678641333,-500.0,0.00013699,2]
[400504879,1767678641342,-501.52353401,0.00013699,2]
[400504880,1767678641352,-500.0,0.00013699,2]
[400504882,1767678641361,-500.0,0.00013699,2]
[400504885,1767678641371,-279.15,0.00013721,2]
[400504886,1767678641380,-1000.0,0.00013821,2]
[400504889,1767678641390,-1000.0,0.00013821,2]
[400504891,1767678641399,-1000.0,0.00013821,2]
[400504892,1767678641409,-1000.0,0.00013821,2]
[400504894,1767678641419,-1000.0,0.00013821,2]
[400504896,1767678641428,-1000.0,0.00013821,2]
[400504898,1767678641437,-1000.0,0.00013821,2]
[400504900,1767678641446,-1000.0,0.00013821,2]
[400504903,1767678641455,-324.24831231,0.00013847,2]
[400504905,1767678641464,-5000.0,0.0001386,2]
[400504906,1767678641473,-1111.06761882,0.00014175,2]
[400504908,1767678641483,-2072.13523764,0.00014175,2]
[400504910,1767678641492,-600.0,0.00014221,2]
[400504912,1767678641501,-180.0,0.00014246,2]
[400504914,1767678641511,-909.51288327,0.00014247,2]
[400504916,1767678641521,-1000.0,0.00014247,2]
[400504919,1767678641530,-1000.0,0.00014247,2]
[400504921,1767678641539,-636.19652258,0.00014247,2]
[400504923,1767678641549,-1000.0,0.00014247,2]
[400504924,1767678641558,-1000.0,0.00014247,2]
[400504926,1767678641567,-1000.0,0.00014247,2]
[400504928,1767678641577,-804.92823426,0.00014247,2]
[400504930,1767678641586,-973.47459044,0.00014247,2]
[400504932,1767678641597,-1000.0,0.00014247,2]
[400504934,1767678641606,-1000.0,0.00014247,2]
[400504937,1767678641615,-1011.61353792,0.00014247,2]
[400504938,1767678641628,-1000.0,0.00014247,2]
[400504941,1767678641638,-1000.0,0.00014247,2]
[400504943,1767678641647,-1000.0,0.00014247,2]
[400504945,1767678641657,-1000.0,0.00014247,2]
[400504947,1767678641667,-1000.0,0.00014247,2]
[400504948,1767678641676,-1057.81149172,0.00014247,2]
[400504951,1767678641686,-10000.0,0.00014279,2]
[400504953,1767678641700,-2351.0,0.00014298,2]
[400504955,1767678641710,-500.0,0.00014304,2]
[400504957,1767678641719,-243.3328023,0.00014304,2]
[400504959,1767678641728,-500.0,0.00014304,2]
[400504961,1767678641738,-229.21411444,0.00014304,2]
[400504963,1767678641748,-500.0,0.00014304,2]
[400504965,1767678641757,-500.0,0.00014304,2]
[400504967,1767678641766,-500.0,0.00014304,2]
[400504969,1767678641775,-151.92238479,0.00014304,2]
[400504971,1767678641784,-500.0,0.00014304,2]
[400504973,1767678641794,-153.10783678,0.00014304,2]
[400504975,1767678641804,-154.03586932,0.00014304,2]
[400504977,1767678641813,-156.80485836,0.00014304,2]
[400504979,1767678641822,-1500.0,0.00014368,2]
[400504981,1767678641831,-1500.0,0.00014368,2]
[400504983,1767678641841,-1500.0,0.00014368,2]
[400504985,1767678641850,-1500.0,0.00014368,2]
[400504987,1767678641859,-1500.0,0.00014368,2]
[400504989,1767678641869,-1500.0,0.00014368,2]
[400504991,1767678641878,-1500.0,0.00014368,2]
[400504993,1767678641887,-500.0,0.00014441,2]
[400504995,1767678641897,-500.0,0.00014441,2]
[400504997,1767678641907,-500.0,0.00014441,2]
[400504999,1767678641916,-609.59469468,0.00014441,2]
[400505001,1767678641928,-500.0,0.00014441,2]
[400505003,1767678641936,-152.00675301,0.00014441,2]
[400505005,1767678641945,-500.0,0.00014441,2]
[400505007,1767678641956,-500.86684083,0.00014578,2]
[400505009,1767678641965,-162.92329902,0.00014578,2]
[400505011,1767678641974,-500.0,0.00014578,2]
[400505013,1767678641983,-500.0,0.00014578,2]
[400505015,1767678641991,-202.6039413,0.00014578,2]
[400505017,1767678642000,-500.0,0.00014578,2]
[400505019,1767678642012,-158.922237,0.00014578,2]
[400505021,1767678642021,-500.0,0.00014578,2]
[400505023,1767678642031,-160.0,0.00014579,3]
[400505025,1767678642040,-3033.20285647,0.00014593,2]
[400505027,1767678642049,-165.36125595,0.00014715,2]
[400505029,1767678642062,-500.0,0.00014715,2]
[400505031,1767678642071,-500.0,0.00014715,2]
[400505033,1767678642080,-500.0,0.00014715,2]
[400505035,1767678642090,-500.0,0.00014715,2]
[400505037,1767678642100,-153.84819516,0.00014715,2]
[400505040,1767678642109,-200.0,0.00014735,2]
[400505042,1767678642118,-100000.0,0.00014736,2]
[400505044,1767678642127,-900.0,0.00014768,2]
[400505046,1767678642136,-1083.90657441,0.00014795,2]
[400505048,1767678642145,-1507.97195792,0.00014795,2]
[400505049,1767678642154,-1500.0,0.00014795,2]
[400505051,1767678642164,-1500.0,0.00014795,2]
[400505054,1767678642173,-1500.0,0.00014795,2]
[400505055,1767678642182,-1500.0,0.00014795,2]
[400505058,1767678642192,-1500.0,0.00014795,2]
[400505060,1767678642201,-1044.59336019,0.00014795,2]
[400505062,1767678642210,-1500.0,0.00014795,2]
[400505064,1767678642220,-642.90527904,0.00014795,2]
[400505066,1767678642229,-1500.0,0.00014795,2]
[400505068,1767678642239,-1500.0,0.00014795,2]
[400505070,1767678642248,-500.0,0.00014852,2]
[400505072,1767678642257,-500.0,0.00014852,2]
[400505074,1767678642266,-500.0,0.00014852,2]
[400505076,1767678642275,-200.4693319,0.00014852,2]
[400505078,1767678642285,-500.0,0.00014852,2]
[400505080,1767678642293,-1334.48545738,0.00014916,2]
[400505082,1767678642302,-2000.0,0.00014916,2]
[400505084,1767678642313,-2000.0,0.00014916,2]
[400505086,1767678642323,-361.15798132,0.00014916,2]
[400505088,1767678642333,-2000.0,0.00014916,2]
[400505090,1767678642343,-2000.0,0.00014916,2]
[400505092,1767678642353,-2000.0,0.00014916,2]
[400505094,1767678642362,-500.0,0.00014989,2]
[400505096,1767678642371,-500.0,0.00014989,2]
[400505098,1767678642380,-500.0,0.00014989,2]
[400505100,1767678642390,-1000.0,0.00015,2]
[400505102,1767678642399,-864.0,0.0001501,2]
[400505104,1767678642408,-160.0,0.00015059,4]
[400505106,1767678642418,-1092.31123047,0.0001506,2]
[400505108,1767678642427,-151.0,0.0001506,2]
[400505110,1767678642436,-286.0795197,0.0001506,2]
[400505112,1767678642445,-151.0,0.0001506,2]
[400505114,1767678642455,-30000.0,0.0001506,2]
[400505116,1767678642464,-151.0,0.0001506,2]
[400505118,1767678642473,-151.0,0.0001506,2]
[400505120,1767678642482,-500.0,0.0001506,2]
[400505122,1767678642492,-250.0,0.0001506,2]
[400505124,1767678642501,-151.0,0.0001506,2]
[400505126,1767678642511,-500.0,0.0001506,2]
[400505128,1767678642521,-250.0,0.0001506,2]
[400505130,1767678642530,-151.0,0.0001506,2]
[400505133,1767678642540,-500.0,0.0001506,2]
[400505135,1767678642549,-250.0,0.0001506,2]
[400505137,1767678642558,-500.0,0.0001506,2]
[400505139,1767678642567,-299.09793067,0.0001506,2]
[400505141,1767678642576,-250.0,0.0001506,2]
[400505143,1767678642586,-496.47127164,0.0001506,2]
[400505145,1767678642595,-500.0,0.0001506,2]
[400505147,1767678642605,-250.0,0.0001506,2]
[400505149,1767678642614,-500.0,0.0001506,2]
[400505151,1767678642624,-250.0,0.0001506,2]
[400505153,1767678642637,-250.0,0.0001506,2]
[400505155,1767678642647,-500.0,0.0001506,2]
[400505157,1767678642656,-153.4156913,0.0001506,2]
[400505159,1767678642665,-255.24985543,0.0001506,2]
[400505161,1767678642675,-500.0,0.0001506,2]
[400505164,1767678642691,-500.0,0.0001506,2]
[400505166,1767678642702,-500.0,0.0001506,2]
[400505167,1767678642711,-500.0,0.0001506,2]
[400505169,1767678642720,-151.0,0.0001506,2]
[400505171,1767678642729,-500.0,0.0001506,2]
[400505173,1767678642739,-500.0,0.0001506,2]
[400505175,1767678642749,-500.0,0.0001506,2]
[400505177,1767678642758,-500.0,0.0001506,2]
[400505179,1767678642767,-2398.4119403,0.0001506,2]
[400505182,1767678642777,-264.57870743,0.0001506,2]
[400505184,1767678642787,-2030.29667201,0.0001506,2]
[400505186,1767678642796,-502.878346,0.00015068,2]
[400505200,1767678642913,-800.0,0.00015068,2]
[400505202,1767678642923,-404.22403567,0.00015126,2]
[400505204,1767678642932,-500.0,0.00015126,2]
[400505206,1767678642941,-500.0,0.00015263,2]
[400505208,1767678642951,-1200.0,0.00015316,2]
[400505210,1767678642960,-1190.51130763,0.00015342,2]
[400505212,1767678642969,-1011.34041447,0.00015342,2]
[400505214,1767678642978,-563.41663894,0.00015342,2]
[400505216,1767678642987,-2000.0,0.00015342,2]
[400505218,1767678642996,-1192.18736728,0.00015342,2]
[400505220,1767678643006,-2000.0,0.00015342,2]
[400505222,1767678643016,-1033.7772006,0.00015342,2]
[400505224,1767678643026,-505.12105821,0.00015342,2]
[400505226,1767678643035,-600.0,0.000154,2]
[400505228,1767678643044,-2500.0,0.00015464,2]
[400505230,1767678643053,-1524.85596201,0.00015464,2]
[400505232,1767678643063,-538.81751467,0.00015464,2]
[400505234,1767678643072,-1380.83045081,0.00015464,2]
[400505236,1767678643081,-2000.0,0.00015464,2]
[400505238,1767678643090,-160.0,0.00015539,5]
[400505240,1767678643100,-1365.0,0.00015579,2]
[400505242,1767678643109,-628.0,0.00015579,2]
[400505244,1767678643118,-2145.0,0.00015579,2]
[400505246,1767678643127,-31110.0,0.00015608,2]
[400505248,1767678643136,-514.84070869,0.00015608,2]
[400505250,1767678643145,-2487.15318209,0.00015608,2]
[400505252,1767678643155,-545.0,0.00015728,2]
[400505254,1767678643166,-250.38477157,0.000158,2]
[400505257,1767678643175,-373.70991928,0.00015847,2]
[400505259,1767678643186,-586.81663952,0.00015864,2]
[400505261,1767678643195,-2500.0,0.0001589,2]
[400505263,1767678643204,-1006.10461326,0.0001589,2]
[400505265,1767678643213,-5000.0,0.00015939,2]
[400505266,1767678643222,-1990.05554086,0.00016012,2]
[400505269,1767678643233,-160.0,0.00016019,6]
[400505270,1767678643241,-32261.07,0.00016156,2]
[400505273,1767678643251,-592.44676745,0.00016156,2]
[400505274,1767678643260,-2579.17784983,0.00016156,2]
[400505276,1767678643269,-801.09070688,0.00016164,2]
[400505278,1767678643278,-1000.0,0.00016179,5]
[400505280,1767678643287,-777.0,0.000163,2]
[400505282,1767678643297,-242.0,0.0001631,2]
[400505284,1767678643307,-242.0,0.00016328,2]
[400505287,1767678643316,-600.0,0.00016354,2]
[400505288,1767678643327,-161.11030349,0.00016429,2]
[400505291,1767678643337,-242.0,0.00016435,2]
[400505292,1767678643346,-500.0,0.00016438,2]
[400505294,1767678643355,-642.30394507,0.00016438,2]
[400505297,1767678643365,-2569.21578027,0.00016438,2]
[400505299,1767678643375,-5774.95477009,0.00016438,2]
[400505301,1767678643384,-417.02054526,0.00016438,2]
[400505303,1767678643394,-1668.08218106,0.00016438,2]
[400505304,1767678643403,-3753.18490738,0.00016438,2]
[400505307,1767678643412,-6672.32872422,0.00016438,2]
[400505309,1767678643422,-500.0,0.00016438,2]
[400505311,1767678643431,-594.0421836,0.00016438,2]
[400505313,1767678643440,-3000.0,0.00016438,2]
[400505315,1767678643449,-242.0,0.00016461,2]
[400505317,1767678643458,-160.0,0.00016499,7]
[400505319,1767678643468,-215.90131744,0.00016499,5]
[400505321,1767678643477,-1000.0,0.00016511,2]
[400505323,1767678643487,-242.0,0.00016593,2]
[400505325,1767678643496,-21269.10163936,0.00016704,2]
[400505327,1767678643505,-2408.83217611,0.00016704,2]
[400505329,1767678643516,-173996.34433472,0.00016731,2]
[400505331,1767678643525,-11514.19562317,0.00016809,2]
[400505333,1767678643534,-160.0,0.00016909,2]
[400505335,1767678643543,-3500.0,0.00016986,2]
[400505337,1767678643552,-242.0,0.0001706,2]
[400505339,1767678643561,-242.0,0.00017155,2]
[400505341,1767678643570,-242.0,0.00017158,2]
[400505343,1767678643580,-242.0,0.00017214,2]
[400505345,1767678643589,-600.0,0.00017278,2]
[400505347,1767678643598,-200.0,0.00017325,2]
[400505349,1767678643607,-38000.0,0.00017326,3]
[400505351,1767678643617,-9570.32376786,0.00017326,3]
[400505353,1767678643630,-4955.33809411,0.00017368,6]
[400505355,1767678643639,-2000.0,0.00017425,3]
[400505357,1767678643649,-921.85041725,0.00017425,3]
[400505359,1767678643658,-2000.0,0.00017434,3]
[400505361,1767678643667,-2000.0,0.00017443,3]
[400505363,1767678643676,-1639.96449792,0.00017444,2]
[400505365,1767678643685,-2000.0,0.00017451,3]
[400505367,1767678643698,-600.0,0.00017458,2]
[400505369,1767678643708,-2000.0,0.0001746,3]
[400505371,1767678643717,-2000.0,0.00017469,3]
[400505373,1767678643726,-156.236454,0.00017469,2]
[400505375,1767678643735,-2000.0,0.00017478,3]
[400505377,1767678643745,-151.0,0.00017478,2]
[400505379,1767678643754,-151.0,0.00017478,2]
[400505381,1767678643763,-151.0,0.00017478,2]
[400505383,1767678643772,-2000.0,0.00017487,3]
[400505385,1767678643782,-2000.0,0.00017495,3]
[400505387,1767678643791,-2000.0,0.00017504,3]
[400505389,1767678643800,-2434.05258532,0.00017505,2]
[400505391,1767678643809,-2000.0,0.00017513,3]
[400505393,1767678643818,-2000.0,0.00017522,3]
[400505395,1767678643828,-2000.0,0.00017531,3]
[400505397,1767678643838,-4000.0,0.00017534,2]
[400505399,1767678643847,-2000.0,0.00017539,3]
[400505401,1767678643856,-2000.0,0.00017548,3]
[400505403,1767678643865,-2000.0,0.00017557,3]
[400505405,1767678643874,-168.0,0.00017561,2]
[400505407,1767678643884,-2000.0,0.00017566,3]
[400505409,1767678643893,-2000.0,0.00017575,3]
[400505411,1767678643902,-2000.0,0.00017583,3]
[400505413,1767678643911,-2000.0,0.00017592,3]
[400505415,1767678643921,-2000.0,0.00017601,3]
[400505417,1767678643931,-2000.0,0.0001761,3]
[400505419,1767678643940,-2000.0,0.00017619,3]
[400505421,1767678643949,-2000.0,0.00017627,3]
[400505423,1767678643959,-2000.0,0.00017636,3]
[400505425,1767678643968,-600.0,0.00017638,2]
[400505427,1767678643978,-2000.0,0.00017645,3]
[400505429,1767678643987,-181.282421,0.00017645,2]
[400505431,1767678643997,-181.282421,0.00017645,2]
[400505433,1767678644006,-181.282421,0.00017645,2]
[400505435,1767678644015,-181.282421,0.00017645,2]
[400505437,1767678644024,-429.4756006,0.00017682,3]
[400505439,1767678644033,-212.54773642,0.00017689,2]
[400505441,1767678644044,-92275.5515522,0.0001769,2]
[400505443,1767678644053,-3749.4547367,0.0001769,2]
[400505445,1767678644063,-151.0,0.0001769,2]
[400505447,1767678644072,-269.211237,0.0001769,2]
[400505449,1767678644081,-151.0,0.0001769,2]
[400505451,1767678644090,-151.0,0.0001769,2]
[400505453,1767678644099,-917.483929,0.0001769,2]
[400505455,1767678644108,-917.483929,0.0001769,2]
[400505457,1767678644118,-917.483929,0.0001769,2]
[400505459,1767678644127,-917.483929,0.0001769,2]
[400505461,1767678644136,-168.0,0.000177,2]
[400505463,1767678644146,-242.0,0.00017701,2]
[400505465,1767678644156,-600.0,0.00017724,7]
[400505466,1767678644166,-242.0,0.00017733,2]
[400505469,1767678644176,-170.73155875,0.0001776,24]
[400505470,1767678644185,-152.0,0.000178,2]
[400505473,1767678644195,-347.0,0.000178,2]
[400505475,1767678644205,-152.0,0.000178,2]
[400505477,1767678644214,-151.0,0.000178,2]
[400505479,1767678644224,-347.0,0.000178,2]
[400505481,1767678644234,-152.0,0.000178,2]
[400505483,1767678644244,-347.0,0.000178,2]
[400505484,1767678644255,-166.0,0.000178,2]
[400505486,1767678644264,-152.0,0.000178,2]
[400505488,1767678644274,-151.0,0.000178,2]
[400505490,1767678644283,-152.0,0.000178,2]
[400505492,1767678644293,-163.0,0.000178,2]
[400505494,1767678644302,-347.0,0.000178,2]
[400505496,1767678644314,-166.0,0.000178,2]
[400505498,1767678644323,-151.0,0.000178,2]
[400505500,1767678644333,-152.0,0.000178,2]
[400505502,1767678644342,-152.0,0.000178,2]
[400505504,1767678644352,-203.94663828,0.000178,2]
[400505506,1767678644361,-347.0,0.000178,2]
[400505508,1767678644371,-166.0,0.000178,2]
[400505510,1767678644381,-151.0,0.000178,2]
[400505512,1767678644390,-152.0,0.000178,2]
[400505514,1767678644399,-152.0,0.000178,2]
[400505516,1767678644409,-166.0,0.000178,2]
[400505518,1767678644418,-347.0,0.000178,2]
[400505520,1767678644428,-151.0,0.000178,2]
[400505522,1767678644437,-152.0,0.000178,2]
[400505524,1767678644447,-336.0,0.000178,2]
[400505526,1767678644456,-152.0,0.000178,2]
[400505528,1767678644466,-166.0,0.000178,2]
[400505530,1767678644475,-347.0,0.000178,2]
[400505532,1767678644484,-151.0,0.000178,2]
[400505534,1767678644494,-300.09906801,0.000178,2]
[400505536,1767678644503,-336.0,0.000178,2]
[400505538,1767678644513,-152.0,0.000178,2]
[400505540,1767678644523,-347.0,0.000178,2]
[400505542,1767678644532,-166.0,0.000178,2]
[400505544,1767678644542,-151.0,0.000178,2]
[400505546,1767678644552,-336.0,0.000178,2]
[400505548,1767678644562,-152.0,0.000178,2]
[400505550,1767678644572,-347.0,0.000178,2]
[400505552,1767678644582,-151.0,0.000178,2]
[400505554,1767678644592,-166.0,0.000178,2]
[400505556,1767678644602,-336.0,0.000178,2]
[400505558,1767678644611,-152.0,0.000178,2]
[400505560,1767678644620,-151.0,0.000178,2]
[400505562,1767678644632,-172.0,0.000178,2]
[400505564,1767678644642,-336.0,0.000178,2]
[400505566,1767678644653,-347.0,0.000178,2]
[400505568,1767678644662,-336.0,0.000178,2]
[400505569,1767678644672,-152.0,0.000178,2]
[400505570,1767678644681,-347.0,0.000178,2]
[400505571,1767678644691,-336.0,0.000178,2]
[400505572,1767678644703,-152.0,0.000178,2]
[400505573,1767678644713,-347.0,0.000178,2]
[400505574,1767678644722,-151.0,0.000178,2]
[400505575,1767678644731,-336.0,0.000178,2]
[400505576,1767678644741,-152.0,0.000178,2]
[400505577,1767678644750,-347.0,0.000178,2]
[400505578,1767678644761,-151.0,0.000178,2]
[400505579,1767678644771,-152.0,0.000178,2]
[400505580,1767678644783,-336.0,0.000178,2]
[400505581,1767678644792,-151.0,0.000178,2]
[400505582,1767678644802,-347.0,0.000178,2]
[400505583,1767678644810,-152.0,0.000178,2]
[400505584,1767678644820,-151.0,0.000178,2]
[400505585,1767678644829,-336.0,0.000178,2]
[400505587,1767678644839,-151.0,0.000178,2]
[400505589,1767678644848,-347.0,0.000178,2]
[400505591,1767678644858,-152.0,0.000178,2]
[400505593,1767678644868,-151.0,0.000178,2]
[400505595,1767678644877,-336.0,0.000178,2]
[400505597,1767678644886,-151.0,0.000178,2]
[400505599,1767678644895,-347.0,0.000178,2]
[400505601,1767678644904,-152.0,0.000178,2]
[400505603,1767678644914,-336.0,0.000178,2]
[400505605,1767678644923,-151.0,0.000178,2]
[400505607,1767678644933,-151.0,0.000178,2]
[400505609,1767678644942,-347.0,0.000178,2]
[400505611,1767678644952,-152.0,0.000178,2]
[400505613,1767678644961,-151.0,0.000178,2]
[400505615,1767678644971,-151.0,0.000178,2]
[400505617,1767678644980,-336.0,0.000178,2]
[400505619,1767678644990,-347.0,0.000178,2]
[400505621,1767678644999,-266.60656086,0.000178,2]
[400505623,1767678645009,-151.0,0.000178,2]
[400505625,1767678645019,-151.0,0.000178,2]
[400505627,1767678645028,-347.0,0.000178,2]
[400505629,1767678645038,-336.0,0.000178,2]
[400505631,1767678645047,-151.0,0.000178,2]
[400505633,1767678645056,-151.0,0.000178,2]
[400505635,1767678645066,-151.0,0.000178,2]
[400505637,1767678645076,-151.0,0.000178,2]
[400505639,1767678645085,-151.0,0.000178,2]
[400505641,1767678645094,-336.0,0.000178,2]
[400505643,1767678645102,-347.0,0.000178,2]
[400505645,1767678645112,-151.0,0.000178,2]
[400505647,1767678645121,-187.9115595,0.000178,2]
[400505649,1767678645130,-336.0,0.000178,2]
[400505651,1767678645139,-347.0,0.000178,2]
[400505653,1767678645148,-151.0,0.000178,2]
[400505655,1767678645157,-336.0,0.000178,2]
[400505656,1767678645166,-347.0,0.000178,2]